[Event "Silves Open 2025"]
[Site "Fissul"]
[Date "2025.03.03"]
[Round "4.4"]
[White "Lux, Hugo de Melo"]
[Black "Malassagne, Raphael"]
[Result "1-0"]
[Annotator "TA"]
[ECO "B10"]
[WhiteElo "2329"]
[BlackElo "2267"]
[PlyCount "99"]
[EventDate "2025.03.03"]
[EventType "swiss"]
[EventCountry "POR"]
[SourceTitle "playchess.com"]
[Source "ChessBase"]
[SourceQuality "1"]
[TimeControl "5400+30"]

{[%evp 9,99,29,34,2,40,38,46,37,48,39,33,45,45,-62,-66,-56,-58,-60,-44,-81,-113,-117,-47,-108,-23,-58,-24,-35,-12,-11,0,10,95,91,84,90,142,142,200,193,185,196,175,154,522,165,185,181,182,154,154,125,154,127,169,205,219,111,190,218,220,220,200,177,207,116,117,114,648,351,350,216,264,207,276,273,343,329,405,420,457,461,470,427,409,387,618,566,5173,3063,2182,2116]} 1. e4 {[%emt 0:02:34]} c6 {[%emt 0:00:20][%cal Bc7c6,Bc6c5][%mdl 32]} 2. Nf3 {[%emt 0:00:12]} d5 {[%emt 0:00:11]} 3. e5 {[%emt 0:00:03]} c5 {[%emt 0:02:48]} 4. c4 {[%emt 0:00:43]} e6 {[%emt 0:02:52]} 5. cxd5 {[%emt 0:00:17]} exd5 {[%emt 0:00:47]} 6. d4 {[%emt 0:00:05] B10: Caro-Kann: 2 d3 and 2 c4.} Nc6 {[%emt 0:02:10]} 7. Bb5 {[%emt 0:00:05]} cxd4 {[%emt 0:19:59]} 8. Nxd4 {[%emt 0:00:17] White is slightly better.} Bb4+ {[%emt 0:05:28]} 9. Nc3 $146 {[%emt 0:08:13]} (9. Bd2 Bxd2+ 10. Qxd2 Nge7 11. O-O O-O 12. Re1 Qb6 13. Bxc6 bxc6 14. b4 a5 15. bxa5 Rxa5 {0-1 Vranidis,G (1998)-Pezerovic,E (2447) Bayern-chI Bank Hofmann 13th 2009 (1)}) 9... Nge7 {[%emt 0:03:26]} 10. Bg5 {[%emt 0:01:06]} Bd7 {[%emt 0:06:35] [#]} 11. e6 {[%emt 0:27:22]} fxe6 $15 {[%emt 0:02:49]} 12. Bxc6 {[%emt 0:00:38]} bxc6 {[%emt 0:00:29]} 13. Qh5+ {[%emt 0:00:06]} Kf8 {[%emt 0:08:34]} 14. Qe2 {[%emt 0:22:12][%cal Oe1g1]} h6 {[%emt 0:03:33]} 15. Bd2 {[%emt 0:01:39]} Nf5 {[%emt 0:05:48]} ({Black should play} 15... Kf7 $17 16. Qf3+ Kg8) 16. Nf3 {[%emt 0:05:49]} (16. Nxe6+ $15 Bxe6 17. Qxe6) 16... c5 {[%emt 0:05:15]} (16... Qf6 $17 {and ...Bd6 should not be overlooked} 17. Ne5 Be8) 17. Ne5 {[%emt 0:09:55]} Be8 {[%emt 0:06:20]} 18. O-O {[%emt 0:01:24]} Nd4 {[%emt 0:01:59]} 19. Qd1 {[%emt 0:04:15]} Qf6 {[%emt 0:02:42]} 20. f4 {[%emt 0:00:20][%cal Oc3d5] next Nxd5! is good for White.} Kg8 {[%emt 0:06:04] [#]} (20... Nf5 $11 {remains equal.}) 21. Nxd5 $1 $16 {[%emt 0:01:25]} exd5 {[%emt 0:00:04]} 22. Bxb4 {[%emt 0:00:04]} Qb6 {[%emt 0:01:54]} (22... cxb4 $142 23. Qxd4 Kh7 24. Qxd5 (24. Qxb4 Bg6 $16) 24... Bg6) 23. Bc3 {[%emt 0:00:22]} Bb5 {[%emt 0:01:38]} (23... h5 $16 24. f5 (24. Bxd4 cxd4 25. Qb3 Qxb3 $14) 24... Rh6) 24. Rf2 {[%emt 0:00:24]} Kh7 {[%emt 0:02:16]} 25. a4 {[%emt 0:01:42][%cal Ba2a4,Ba4a5][%mdl 32]} Bc4 {[%emt 0:02:21]} 26. a5 {[%emt 0:00:19]} Qb3 $2 {[%emt 0:00:42]} (26... Qe6 $16 {is more resistant.} 27. Bxd4 cxd4 28. Qxd4 Rhc8) 27. Bxd4 $2 {[%emt 0:04:48]} (27. Qb1+ Kg8 28. Qg6 (28. Bxd4 cxd4 29. Qg6 Qe3 $18)) 27... Qxd1+ $18 {[%emt 0:00:27]} 28. Rxd1 {[%emt 0:00:01][%csl Oe5] Strong Square White (e5)} cxd4 {[%emt 0:00:06]} 29. Rxd4 {[%emt 0:00:07]} Rac8 {[%emt 0:00:03]} 30. g4 {[%emt 0:03:41][%cal Bg2g4,Bg4g5][%mdl 32] White is much more active.} Rhe8 {[%emt 0:00:25]} 31. h4 {[%emt 0:00:14]} Re7 {[%emt 0:03:10]} 32. g5 {[%emt 0:01:17]} g6 {[%emt 0:00:18]} 33. Ng4 {[%emt 0:01:46]} (33. Rc2 $18) 33... Re1+ {[%emt 0:00:20] [#]} (33... hxg5 $16 34. hxg5 (34. fxg5 Kg7 $16) 34... Rc5) 34. Kh2 $1 {[%emt 0:00:13]} hxg5 {[%emt 0:00:11]} 35. fxg5 {[%emt 0:00:31]} (35. hxg5 Rc1 36. Ne5 Ba2) 35... Kg7 {[%emt 0:00:07]} 36. Nf6 $36 {[%emt 0:01:13][%mdl 2048] White has strong initiative.} Rc5 {[%emt 0:02:35] [#]} 37. b4 {[%emt 0:01:27]} ({Better is} 37. b3 $1 $18 {[%cal Rb3c4]} Bxb3 38. Rb4) 37... Rb5 $16 {[%emt 0:00:04]} 38. Rdf4 {[%emt 0:00:45]} a6 $2 {[%emt 0:02:53][%mdl 8192]} (38... Rxb4 $2 39. Nxd5 Bxd5 40. Rxb4 $18) (38... Rb7 $16 39. Rg2 Re6) 39. Nd7 {[%emt 0:00:42]} Re7 {[%emt 0:00:26] Dodges Rf7+} 40. Nb6 {[%emt 0:00:11]} Bd3 {[%emt 0:02:21]} (40... Rxb4 $2 {too greedy.} 41. Nxd5 Bxd5 42. Rxb4 $18) 41. Rd4 {[%emt 0:00:27]} Be4 {[%emt 0:00:00]} 42. Rf6 {[%emt 0:00:10]} Rc7 {[%emt 0:00:00]} 43. Rd6 {[%emt 0:01:02]} Rc2+ {[%emt 0:00:00]} 44. Kg3 {[%emt 0:00:02]} Rc3+ {[%emt 0:00:00]} 45. Kf4 {[%emt 0:00:10]} Rb3 {[%emt 0:00:00]} 46. Rd7+ {[%emt 0:00:57]} Kf8 {[%emt 0:00:20]} 47. Nxd5 {[%emt 0:00:59]} Bg2 {[%emt 0:01:17]} (47... Bxd5 $142 48. R4xd5 R3xb4+ 49. Ke5 Rxd5+ 50. Rxd5 Ke7) 48. Ke5 $18 {[%emt 0:00:27] Black must now prevent Kf6. White is clearly winning.} Re3+ {[%emt 0:01:28]} 49. Kf6 {[%emt 0:00:23] Rd8+ would kill now.} Rf3+ {[%emt 0:00:50]} 50. Kxg6 {[%emt 0:00:25] Weighted Error Value: White=0.43/Black=0.59  Loses game:     	---       	Black=2      Mistake:       	White=5     	Black=7      Inaccurate:     	White=3     	Black=4      OK:         	White=14    	Black=9      Best:        	White=3     	Black=3      Strong:       	White=1     	---        Brilliant:      	White=1     	---} 1-0

[Event "Silves Open 2025"]
[Site "Fissul"]
[Date "2025.03.03"]
[Round "4.5"]
[White "Milat, Marcel"]
[Black "Fernandes, Antonio"]
[Result "0-1"]
[Annotator "TA"]
[ECO "E97"]
[WhiteElo "2190"]
[BlackElo "2326"]
[PlyCount "63"]
[EventDate "2025.03.03"]
[EventType "swiss"]
[EventCountry "POR"]
[SourceTitle "playchess.com"]
[Source "ChessBase"]
[SourceQuality "1"]
[TimeControl "5400+30"]

{[%evp 19,63,18,64,57,59,62,72,47,149,95,112,120,122,113,117,108,117,120,114,125,131,112,135,103,147,153,135,131,160,164,149,145,162,168,172,138,134,140,150,148,186,110,116,-450,-375,-333]} 1. d4 {[%emt 1:31:00]} Nf6 {[%emt 0:06:27]} 2. c4 {[%emt 0:00:00]} g6 {[%emt 0:05:07]} 3. Nc3 {[%emt 0:00:00]} Bg7 {[%emt 0:01:05]} 4. e4 {[%emt 0:00:00]} d6 {[%emt 0:00:01]} 5. Nf3 {[%emt 0:00:00]} O-O {[%emt 0:07:23]} 6. Be2 {[%emt 0:00:00]} e5 {[%emt 0:01:11]} 7. O-O {[%emt 0:00:00]} Nc6 {[%emt 0:00:55]} 8. d5 {[%emt 0:00:00]} Ne7 {[%emt 0:01:12]} 9. b4 {[%emt 0:00:00]} Ne8 {[%emt 0:02:33]} 10. c5 {[%emt 0:00:00]} h6 {[%emt 0:00:47]} (10... a5 $11) 11. a4 $14 {[%emt 0:00:00] E97: King's Indian: Classical Main Line (6...e5 7 0-0 Nc6): 8 Be3 and 8 d5 Ne7, not 9 Ne1.} f5 {[%emt 0:01:05]} 12. Nd2 {[%emt 0:00:00][%cal Bf3d2,Bd2c4,Bc4e3][%mdl 32]} Rf7 {[%emt 0:08:54]} 13. Ba3 {[%emt 0:00:00] White is better.} Bf8 {[%emt 0:02:18] [#]} (13... fxe4 $14 14. Ndxe4 Nf5) 14. a5 {[%emt 0:00:00]} (14. f3 $142 $1) 14... Nf6 {[%emt 0:24:42]} 15. f3 {[%emt 0:00:00]} g5 $146 {[%emt 0:19:32]} (15... f4 16. Nc4 g5 17. b5 Ng6 18. b6 axb6 19. axb6 dxc5 20. bxc7 Qxc7 21. Nb5 Qd8 {1-0 Barbeau,S (1968)-Pajak,J (2103) CAN-ch U20 1978-79 (3)}) 16. Nc4 {[%emt 0:00:00]} Ng6 {[%emt 0:00:13]} 17. exf5 {[%emt 0:00:00]} Bxf5 {[%emt 0:00:04]} 18. Ne3 {[%emt 0:00:00]} Bc8 {[%emt 0:01:37]} 19. g3 {[%emt 0:00:00]} Ne7 {[%emt 0:11:57]} 20. Bd3 {[%emt 0:00:00] Inhibits Nf5.} Bh3 {[%emt 0:02:55]} 21. Re1 {[%emt 0:00:00]} h5 {[%emt 0:00:30]} 22. Ne4 {[%emt 0:00:00]} Nxe4 {[%emt 0:00:29]} 23. fxe4 {[%emt 0:00:00]} g4 {[%emt 0:00:29] [#]} 24. Bf1 $1 {[%emt 0:00:00]} Bxf1 {[%emt 0:00:08]} 25. Rxf1 {[%emt 0:00:00]} (25. Nxf1 Bh6 $16) 25... Rxf1+ {[%emt 0:00:54]} 26. Qxf1 {[%emt 0:00:00]} (26. Kxf1 b5 $16) 26... Qe8 {[%emt 0:00:25]} 27. cxd6 {[%emt 0:00:00]} cxd6 {[%emt 0:00:02]} 28. Qf6 {[%emt 0:00:00][%cal Ob4b5]} Qg6 {[%emt 0:00:36]} 29. Qxg6+ {[%emt 0:00:00]} Nxg6 {[%emt 0:00:01]} 30. Rc1 {[%emt 0:00:00]} (30. b5 $18) 30... Bh6 $16 {[%emt 0:00:16]} 31. Kf2 {[%emt 0:00:00][%mdl 8192]} (31. Rc3 $16 {stays on course. Black must now prevent Nf5.} Bxe3+ 32. Rxe3) 31... Rf8+ $19 {[%emt 0:00:13]} 32. Ke2 {[%emt 0:00:00] Never resign too early!   Weighted Error Value: White=0.46/Black=0.13 (very precise)   Loses game:     	White=1     	---        Mistake:       	White=2     	Black=1      Inaccurate:     	---       	Black=1      OK:         	White=10    	Black=8      Best:        	---       	Black=1} 0-1

[Event "Silves Open 2025"]
[Site "Fissul"]
[Date "2025.03.03"]
[Round "4.6"]
[White "Hopman, Pieter"]
[Black "Ryabukhin, Roman"]
[Result "1-0"]
[Annotator "TA"]
[ECO "C44"]
[WhiteElo "2312"]
[BlackElo "2209"]
[PlyCount "101"]
[EventDate "2025.03.03"]
[EventType "swiss"]
[EventCountry "POR"]
[SourceTitle "playchess.com"]
[Source "ChessBase"]
[SourceQuality "1"]
[TimeControl "5400+30"]

{[%evp 9,101,-32,-4,-16,21,-2,17,-6,0,-8,34,33,52,53,53,45,55,39,43,48,50,58,38,0,0,0,0,5,15,23,78,81,157,171,154,139,157,156,126,114,182,172,181,177,166,187,187,196,191,195,207,203,194,202,197,181,205,201,255,256,255,254,245,208,205,212,242,242,243,162,173,172,178,178,168,167,161,157,164,159,250,256,257,228,314,310,271,287,447,447,433,433,418,414]} 1. Nf3 {[%emt 0:00:30]} Nf6 {[%emt 0:00:12]} 2. d3 {[%emt 0:00:01]} Nc6 {[%emt 0:01:35]} 3. e4 {[%emt 0:00:22]} e5 {[%emt 0:00:26]} 4. c3 {[%emt 0:00:43]} d5 {[%emt 0:00:15]} 5. Nbd2 {[%emt 0:00:12]} Be7 {[%emt 0:01:43]} 6. b4 {[%emt 0:00:34] C44: Ponziani Opening and Scotch Gambit.} a6 {[%emt 0:00:28]} 7. Bb2 {[%emt 0:00:21]} h6 {[%emt 0:01:19]} 8. a3 {[%emt 0:04:02] The position is equal.} O-O {[%emt 0:01:12]} 9. Be2 {[%emt 0:01:13]} Be6 {[%emt 0:01:17][%cal Bc8e6,Be6d5,Bd5f7][%mdl 32]} 10. O-O {[%emt 0:00:27]} Nd7 $146 {[%emt 0:01:49]} (10... Qd7 11. Qc2 g5 12. c4 dxe4 13. dxe4 Nd4 14. Bxd4 exd4 15. Nb3 c5 16. bxc5 Rac8 {1-0 Trushnikov,S (2525)-Ivanov,M (1749) Kerch Panticapaeum Rapid op 2021 (2)}) 11. exd5 {[%emt 0:01:21]} Bxd5 {[%emt 0:00:07]} 12. Re1 {[%emt 0:02:07]} f5 {[%emt 0:05:25]} 13. c4 {[%emt 0:01:08]} Bf7 {[%emt 0:00:17]} 14. b5 {[%emt 0:01:37]} Nd4 {[%emt 0:04:12]} 15. Nxd4 {[%emt 0:03:32]} exd4 {[%emt 0:00:06]} 16. Nf3 {[%emt 0:01:34]} axb5 {[%emt 0:01:29]} 17. Nxd4 {[%emt 0:07:48]} Bf6 {[%emt 0:04:33] White must now prevent ...Nb6.} 18. Qc2 {[%emt 0:02:24]} bxc4 {[%emt 0:01:49]} 19. dxc4 {[%emt 0:03:03][%cal Bd3c4,Bc4c5][%mdl 32]} g6 {[%emt 0:10:19]} (19... f4 $11 {keeps the balance.}) 20. Rad1 $16 {[%emt 0:02:42][%cal Ba1d1,Bd1e1,Be1e3][%mdl 32]} Qc8 {[%emt 0:00:21]} (20... Re8 $142) 21. c5 {[%emt 0:01:40][%cal Oh2h4]} Re8 {[%emt 0:07:42]} 22. Bc4 {[%emt 0:09:48]} Ne5 {[%emt 0:01:37]} 23. Bxf7+ {[%emt 0:07:24]} Nxf7 {[%emt 0:00:10]} 24. h4 {[%emt 0:05:07]} Rxe1+ {[%emt 0:09:32]} (24... Ra6 $16) 25. Rxe1 $18 {[%emt 0:00:06]} Qd7 {[%emt 0:01:42] [#]} 26. Nxf5 {[%emt 0:05:07][%mdl 512]} Qxf5 {[%emt 0:00:25]} 27. Qxf5 {[%emt 0:00:04]} gxf5 {[%emt 0:00:06]} 28. Bxf6 {[%emt 0:00:03][%mdl 4096] Endgame KRB-KRN. White is a pawn up.} Kf8 {[%emt 0:02:03]} 29. Re3 {[%emt 0:02:21]} Ra6 {[%emt 0:08:59]} 30. Bc3 {[%emt 0:02:34]} h5 {[%emt 0:03:57]} 31. Bb4 {[%emt 0:06:22] and c6+ should not be overlooked} Kg7 {[%emt 0:00:09]} 32. Re8 {[%emt 0:00:52]} Rc6 {[%emt 0:01:31]} 33. Bc3+ {[%emt 0:03:24]} Kg6 {[%emt 0:00:56]} 34. Rg8+ {[%emt 0:01:05]} Kh6 {[%emt 0:00:05]} 35. Bd4 {[%emt 0:00:37]} f4 {[%emt 0:02:21]} 36. Rb8 {[%emt 0:00:42]} Kg6 {[%emt 0:00:33]} 37. f3 {[%emt 0:01:47]} Kf5 {[%emt 0:01:34]} 38. Rxb7 {[%emt 0:00:42]} Nd8 {[%emt 0:00:07]} 39. Rb8 {[%emt 0:00:57]} Ne6 {[%emt 0:00:02]} 40. Bf2 {[%emt 0:00:24]} Ra6 {[%emt 0:00:03]} 41. Rb3 {[%emt 0:01:30]} Ke5 {[%emt 0:03:06]} 42. Rd3 {[%emt 0:01:45]} Ra5 {[%emt 0:00:56]} 43. Rd7 {[%emt 0:02:45]} Kf6 {[%emt 0:01:44]} 44. Rd5 {[%emt 0:02:49]} Kg6 {[%emt 0:00:16]} (44... Rxa3 $16 {is a better defense.} 45. Rxh5 Ra1+ 46. Kh2 Rd1 47. Rh6+ Kf7) 45. Re5 {[%emt 0:00:25]} Ra6 {[%emt 0:00:08]} 46. Be1 {[%emt 0:02:59][%cal Oa3a4]} Nd4 {[%emt 0:00:34]} 47. Bd2 {[%emt 0:00:27]} Rxa3 {[%emt 0:00:31]} 48. Bxf4 {[%emt 0:00:42]} Ra2 {[%emt 0:04:07]} (48... Nf5 $142 49. Bg5 Ra6) 49. Rg5+ {[%emt 0:01:38]} Kf7 {[%emt 0:00:07]} 50. Bxc7 {[%emt 0:01:15]} Ne6 {[%emt 0:00:07] [#]} 51. Rd5 $1 {[%emt 0:00:06] Weighted Error Value: White=0.05 (flawless) /Black=0.20 (precise)   Mistake:       	---       	Black=5      Inaccurate:     	White=2     	Black=3      OK:         	White=30    	Black=18     Best:        	White=2     	Black=2      Strong:       	White=1     	---} ({Not} 51. Rf5+ Kg6 52. g4 Nxc7 $14) 1-0

[Event "Silves Open 2025"]
[Site "Fissul"]
[Date "2025.03.03"]
[Round "4.7"]
[White "Kuegel, Tobias"]
[Black "Sarabando, Rodrigo Andias"]
[Result "0-1"]
[Annotator "RC"]
[ECO "B81"]
[WhiteElo "2423"]
[BlackElo "2097"]
[PlyCount "141"]
[EventDate "2025.03.03"]
[EventType "swiss"]
[EventCountry "POR"]
[SourceTitle "playchess.com"]
[Source "ChessBase"]
[SourceQuality "1"]
[TimeControl "5400+30"]

1. e4 {[%emt 0:00:02]} c5 {[%emt 0:02:22]} 2. Nf3 {[%emt 0:00:07]} e6 {[%emt 0:00:04]} 3. d4 {[%emt 0:00:09]} cxd4 {[%emt 0:00:02]} 4. Nxd4 {[%emt 0:00:08]} Nf6 {[%emt 0:00:02]} 5. Nc3 {[%emt 0:00:12]} d6 {[%emt 0:00:04]} 6. g4 {[%emt 0:00:08]} h6 {[%emt 0:00:05]} 7. Rg1 {[%emt 0:00:09]} Nc6 {[%emt 0:00:06]} 8. Be3 {[%emt 0:00:17]} Bd7 {[%emt 0:00:01]} 9. Be2 {[%emt 0:00:16]} Be7 {[%emt 0:00:10]} 10. Qd2 {[%emt 0:01:01]} Nxd4 {[%emt 0:03:40]} 11. Qxd4 {[%emt 0:00:21]} Bc6 {[%emt 0:00:07]} 12. O-O-O {[%emt 0:03:20]} Qb6 {[%emt 0:00:03]} 13. Qc4 {[%emt 0:08:45]} Qc7 {[%emt 0:00:29]} 14. h4 {[%emt 0:08:02]} d5 {[%emt 0:13:54]} 15. exd5 {[%emt 0:03:16]} Nxd5 {[%emt 0:00:13]} 16. Nxd5 {[%emt 0:02:38]} exd5 {[%emt 0:00:10]} 17. Qc3 {[%emt 0:10:36]} Bf6 {[%emt 0:31:23]} 18. Bd4 {[%emt 0:05:46]} Qf4+ {[%emt 0:04:54]} 19. Kb1 {[%emt 0:05:50]} Bxd4 {[%emt 0:01:39]} 20. Qxd4 {[%emt 0:00:35]} Qxd4 {[%emt 0:00:15]} 21. Rxd4 {[%emt 0:00:02]} O-O-O {[%emt 0:01:18]} 22. Kc1 {[%emt 0:07:45]} Kc7 {[%emt 0:03:09]} 23. b4 {[%emt 0:06:48]} a6 {[%emt 0:04:29]} 24. g5 {[%emt 0:04:56]} hxg5 {[%emt 0:08:14]} 25. Rxg5 {[%emt 0:00:19]} g6 {[%emt 0:00:08]} 26. Rf4 {[%emt 0:00:14]} Rd7 {[%emt 0:05:10]} 27. h5 {[%emt 0:07:31]} Re7 {[%emt 0:16:04]} 28. Kd2 {[%emt 0:02:59]} gxh5 {[%emt 0:01:46]} 29. Bxh5 {[%emt 0:00:07]} Re4 {[%emt 0:00:41]} 30. Rxe4 {[%emt 0:06:25]} dxe4 {[%emt 0:00:05]} 31. Bxf7 {[%emt 0:00:09]} Rf8 {[%emt 0:01:50]} 32. Rg7 {[%emt 0:00:01]} Kd6 {[%emt 0:01:03]} 33. Ke3 {[%emt 0:00:37]} Rh8 {[%emt 0:00:42]} 34. Bc4 {[%emt 0:02:41]} Rh3+ {[%emt 0:01:09]} 35. Rg3 {[%emt 0:04:00]} Rh1 {[%emt 0:00:12]} 36. Rg6+ {[%emt 0:00:01]} Ke5 {[%emt 0:00:44]} 37. Rg5+ {[%emt 0:05:41]} Kd6 {[%emt 0:00:21]} 38. Bb3 {[%emt 0:00:44]} Re1+ {[%emt 0:01:04]} 39. Kd2 {[%emt 0:00:07]} Ra1 {[%emt 0:00:46]} 40. c4 {[%emt 0:03:27]} Rf1 {[%emt 0:00:53]} 41. Ke2 {[%emt 0:00:55]} Rb1 {[%emt 0:00:38]} 42. Rf5 {[%emt 0:02:24]} Ke6 {[%emt 0:00:35]} 43. Rh5 {[%emt 0:00:28]} Kd6 {[%emt 0:00:04]} 44. Ke3 {[%emt 0:00:40]} Re1+ {[%emt 0:00:37]} 45. Kd4 {[%emt 0:00:02]} Re2 {[%emt 0:00:44]} 46. Rh7 {[%emt 0:00:53]} Rd2+ {[%emt 0:00:33]} 47. Ke3 {[%emt 0:00:02]} Rd3+ {[%emt 0:00:31]} 48. Ke2 {[%emt 0:00:01]} Rc3 {[%emt 0:00:23]} 49. Rg7 {[%emt 0:01:41]} Ke5 {[%emt 0:00:51]} 50. Rg5+ {[%emt 0:01:17]} Kf4 {[%emt 0:00:21]} 51. Rg8 {[%emt 0:00:35]} Ke5 {[%emt 0:00:17]} 52. Rh8 {[%emt 0:00:32]} Rf3 {[%emt 0:00:46]} 53. Rh1 {[%emt 0:00:44]} Kd4 {[%emt 0:00:25]} 54. Rc1 {[%emt 0:00:30]} Rh3 {[%emt 0:00:21]} 55. Rc2 {[%emt 0:00:32]} Rh2 {[%emt 0:00:15]} 56. Ke1 {[%emt 0:00:15]} Rh1+ {[%emt 0:00:08]} 57. Kd2 {[%emt 0:00:05]} Rf1 {[%emt 0:00:25]} 58. Ke2 {[%emt 0:00:10]} Rh1 {[%emt 0:00:05]} 59. Rd2+ {[%emt 0:01:17]} Kc3 {[%emt 0:00:06]} 60. Rc2+ {[%emt 0:00:41]} Kxb4 {[%emt 0:01:07]} 61. c5 {[%emt 0:00:18]} Bb5+ {[%emt 0:00:26]} 62. Ke3 {[%emt 0:00:10]} Rh3+ {[%emt 0:00:23]} 63. Kd4 {[%emt 0:00:22]} Bd3 {[%emt 0:00:30]} 64. c6 {[%emt 0:00:52]} bxc6 {[%emt 0:01:14]} 65. Rxc6 {[%emt 0:00:04]} Rf3 {[%emt 0:00:26]} 66. Bc4 {[%emt 0:01:15]} Bxc4 {[%emt 0:01:16]} 67. Rxc4+ {[%emt 0:00:02]} Ka3 {[%emt 0:00:06]} 68. Rc2 {[%emt 0:00:12]} Rf4 {[%emt 0:00:13]} 69. Ke3 {[%emt 0:01:07]} Rh4 {[%emt 0:00:07]} 70. Rc4 {[%emt 0:00:40]} a5 {[%emt 0:00:39]} 71. Rc5 {[%emt 0:01:02]} 0-1

[Event "Silves Open 2025"]
[Site "Fissul"]
[Date "2025.03.03"]
[Round "4.8"]
[White "Moldovan, Lucas Gabriel"]
[Black "Espinosa Aranda, Angel"]
[Result "0-1"]
[Annotator "TA"]
[ECO "C00"]
[WhiteElo "1992"]
[BlackElo "2442"]
[PlyCount "56"]
[EventDate "2025.03.03"]
[EventType "swiss"]
[EventCountry "POR"]
[SourceTitle "playchess.com"]
[Source "ChessBase"]
[SourceQuality "1"]
[TimeControl "5400+30"]

{[%evp 14,56,-21,-13,-10,-20,-7,-11,-6,-30,-3,-43,-37,-45,12,17,12,11,4,2,0,-225,-211,-209,-222,-210,-225,-222,-216,-225,-221,-321,-307,-292,-210,-385,-364,-504,-497,-600,-400,-604,-593,-1207,-1192]} 1. e4 {[%emt 0:00:04]} e6 {[%emt 0:00:11]} 2. d3 {[%emt 0:00:08]} d5 {[%emt 0:00:40]} 3. Nd2 {[%emt 0:00:21]} Nf6 {[%emt 0:00:58]} 4. Ngf3 {[%emt 0:00:32]} Nc6 {[%emt 0:01:23]} 5. g3 {[%emt 0:01:16]} dxe4 {[%emt 0:01:41]} 6. dxe4 {[%emt 0:00:42]} Bc5 {[%emt 0:00:18]} 7. Bg2 {[%emt 0:01:05]} e5 {[%emt 0:00:35]} 8. O-O {[%emt 0:01:19]} a5 {[%emt 0:03:30] C00: French: Unusual White 2nd moves.} 9. c3 {[%emt 0:02:24]} Qd3 {[%emt 0:00:38][%cal Oe8g8]} 10. Ne1 {[%emt 0:34:29]} Qd6 {[%emt 0:00:40] The position is equal.} 11. Qc2 {[%emt 0:02:10]} Be6 {[%emt 0:00:21]} 12. Qa4 $146 {[%emt 0:09:10]} (12. Nb3 Ba7 13. Nf3 a4 14. Nbd2 O-O 15. Ng5 Rfd8 16. Nxe6 Qxe6 17. h3 h6 18. Re1 {0-1 Makwena,C (1860)-Radeva,V (2297) Olympiad Women-45 2024 (1.13)}) 12... O-O {[%emt 0:23:04]} 13. Nc4 {[%emt 0:06:18]} Qe7 {[%emt 0:11:10]} (13... Qd7 $15) 14. Nd3 $11 {[%emt 0:03:15]} Nd7 {[%emt 0:07:32][%cal Bf6d7,Bd7c5,Bc5e6,Be6g5,Bg5f3][%mdl 32]} 15. Be3 {[%emt 0:05:25]} Bxc4 {[%emt 0:07:25]} 16. Bxc5 {[%emt 0:00:34]} Qe6 {[%emt 0:00:36]} (16... Nxc5 {simplifies} 17. Qxc4 Nxd3 18. Qxd3 Na7) 17. Bh3 $2 {[%emt 0:06:33] [#]} Bxd3 $1 $19 {[%emt 0:00:25]} 18. Bxe6 {[%emt 0:01:36]} Nxc5 {[%emt 0:00:04]} 19. Qa3 {[%emt 0:08:00]} Nxe6 {[%emt 0:00:07]} 20. Rfe1 {[%emt 0:00:12]} Ng5 {[%emt 0:02:10] Dodges f3} 21. Re3 {[%emt 0:00:19] White is weak on the light squares} Bxe4 {[%emt 0:00:20]} 22. f3 {[%emt 0:05:04]} (22. f4 $142 Nh3+ 23. Kf1) 22... Nxf3+ {[%emt 0:01:59]} 23. Kf2 {[%emt 0:00:09]} Nd2 {[%emt 0:00:09]} 24. Rae1 $2 {[%emt 0:05:34] [#]} (24. Qa4 {keeps fighting.} f5 25. Rd1) 24... Bg6 {[%emt 0:02:03] And now ...Nc4 would win.} 25. b3 {[%emt 0:02:40]} f5 {[%emt 0:00:10]} 26. Kg2 {[%emt 0:01:18]} Ne4 {[%emt 0:02:38]} 27. Rxe4 {[%emt 0:01:05]} (27. g4 $142 Nd6 (27... fxg4 28. Rxe4 Bxe4+ 29. Rxe4 $17) 28. gxf5 Rxf5 (28... Nxf5 $2 29. Re4 $19) 29. Rf3) 27... fxe4 {[%emt 0:00:05]} 28. b4 {[%emt 0:00:05]} axb4 {[%emt 0:33:38] Weighted Error Value: White=0.86/Black=0.25 (precise)   Loses game:     	White=1     	---        Mistake:       	White=3     	Black=1      Inaccurate:     	White=3     	Black=1      OK:         	White=6     	Black=10     Best:        	White=3     	Black=1} 0-1